[Event "98th Caplin Hastings Masters 2024-25"]
[Site "Hastings"]
[Date "2025.01.01"]
[Round "7.10"]
[White "Kolka, David"]
[Black "Gasanov, Eldar"]
[Result "0-1"]
[ECO "C60"]
[WhiteElo "2020"]
[BlackElo "2476"]
[Annotator "TA"]
[PlyCount "76"]
[EventDate "2024.12.23"]
[EventType "swiss"]
[EventCountry "ENG"]
[SourceTitle "playchess.com"]
[Source "ChessBase"]
[SourceQuality "1"]
[TimeControl "5400+30"]

{[%evp 9,76,10,3,-10,-4,-2,0,0,16,0,0,0,0,-20,-14,-15,3,-14,-1,-15,0,-7,-14,-22,0,0,0,0,0,0,0,0,0,-1,-4,-34,-42,-94,-32,-97,-27,-41,-44,-44,-46,-50,-43,-50,-43,-47,0,-59,-59,-57,-59,-59,-54,-60,-50,-101,-91,-95,-40,-106,-111,-879,-781,-825,-800]} 1. e4 {[%emt 0:02:18]} e5 {[%emt 0:00:19]} 2. Nf3 {[%emt 0:00:18]} Nc6 {[%emt 0:00:16]} 3. Bb5 {[%emt 0:00:06]} g6 {[%emt 0:00:22]} 4. d4 {[%emt 0:14:49]} exd4 {[%emt 0:00:12]} 5. Nxd4 {[%emt 0:00:15]} Bg7 {[%emt 0:00:17]} 6. c3 {[%emt 0:09:01]} Nf6 {[%emt 0:01:07]} 7. O-O {[%emt 0:03:37][%cal Oe4e5]} O-O {[%emt 0:00:38]} (7... Nxe4 $6 8. Re1 Nxd4 9. cxd4 $16) 8. Re1 {[%emt 0:01:01]} Re8 {[%emt 0:00:36]} 9. Nd2 {[%emt 0:31:00]} a6 {[%emt 0:19:31]} 10. Nxc6 {[%emt 0:03:33]} bxc6 {[%emt 0:01:57]} 11. Bd3 {[%emt 0:01:02]} d5 {[%emt 0:01:43]} 12. exd5 {[%emt 0:05:49]} cxd5 {[%emt 0:12:53]} 13. Nf3 {[%emt 0:02:34]} c5 {[%emt 0:06:54]} 14. Bf4 {[%emt 0:02:25]} Bb7 {[%emt 0:03:49]} 15. Be5 {[%emt 0:07:16]} Qb6 {[%emt 0:05:21]} 16. Qa4 {[%emt 0:04:19]} Re6 {[%emt 0:11:04]} 17. b4 {[%emt 0:05:30]} Ne4 {[%emt 0:09:54]} 18. Bxg7 {[%emt 0:01:12]} Kxg7 {[%emt 0:00:24]} 19. bxc5 {[%emt 0:02:42]} Qxc5 {[%emt 0:00:25]} 20. Qd4+ {[%emt 0:00:22]} Qxd4 {[%emt 0:00:18]} 21. Nxd4 {[%emt 0:00:13]} Rd6 {[%emt 0:03:07]} 22. Bxe4 {[%emt 0:01:25]} dxe4 {[%emt 0:00:05]} 23. f3 {[%emt 0:00:26]} (23. Red1 $15 Rad8 24. g3) 23... Rc8 {[%emt 0:02:34]} (23... exf3 $17 24. gxf3 Rc8) 24. Re3 {[%emt 0:00:13]} (24. Rad1 $15) 24... f5 {[%emt 0:01:11]} (24... exf3 $17 25. Nxf3 Rd5) 25. fxe4 {[%emt 0:00:27]} Bxe4 {[%emt 0:01:58]} 26. Rd1 {[%emt 0:00:27][%cal Od4f5] and Nxf5+! should not be overlooked} Kf6 {[%emt 0:03:50]} 27. Kf2 {[%emt 0:00:17]} h5 {[%emt 0:01:51]} 28. Rd2 {[%emt 0:00:35]} Rb8 {[%emt 0:02:36]} 29. Ree2 {[%emt 0:00:41]} Rc8 {[%emt 0:00:52]} 30. Re3 {[%emt 0:00:04]} g5 {[%emt 0:03:10]} 31. Rb2 {[%emt 0:00:41]} h4 $36 {[%emt 0:00:26][%mdl 2048] Black has the initiative.} 32. a3 {[%emt 0:01:16]} Rc5 {[%emt 0:01:34]} 33. a4 {[%emt 0:00:24]} g4 {[%emt 0:01:46]} 34. Rb8 {[%emt 0:00:25]} ({Better is} 34. g3 $15) 34... Rc4 $17 {[%emt 0:01:38]} 35. a5 {[%emt 0:00:39]} Rc5 {[%emt 0:01:09]} (35... Ra4 $17 36. Rf8+ Kg6) 36. Rf8+ {[%emt 0:00:16]} (36. Rh8 $15) 36... Kg7 {[%emt 0:00:26]} 37. Nb3 $2 {[%emt 0:00:40][%mdl 8192]} (37. Re8 $17) 37... Rb5 $19 {[%emt 0:00:24]} 38. c4 {[%emt 0:00:10]} Rxb3 {[%emt 0:00:26]} ({Less strong is} 38... Kxf8 39. cxb5 axb5 40. g3 $17) 0-1

[Event "98th Caplin Hastings Masters 2024-25"]
[Site "Hastings"]
[Date "2025.01.01"]
[Round "7.11"]
[White "Wall, Tim P"]
[Black "Bazakutsa, Svyatoslav"]
[Result "0-1"]
[ECO "B30"]
[WhiteElo "2173"]
[BlackElo "2484"]
[Annotator "TA"]
[PlyCount "74"]
[EventDate "2024.12.23"]
[EventType "swiss"]
[EventCountry "ENG"]
[SourceTitle "playchess.com"]
[Source "ChessBase"]
[SourceQuality "1"]
[TimeControl "5400+30"]

{[%evp 9,74,-51,-33,-31,-26,-153,-116,-157,-155,-219,-210,-210,-213,-262,-57,-62,-62,-196,-176,-175,-187,-202,-147,-143,-137,-222,-96,-96,-75,-59,-72,-72,-57,-47,-59,-51,-58,-82,-77,-77,-74,-115,-122,-129,-127,-131,-129,-140,-105,-107,-105,-105,-112,-191,-161,-166,-168,-207,-195,-200,-172,-218,-218,-286,-274,-387,-386]} 1. e4 {[%emt 0:05:59]} c5 {[%emt 0:00:09]} 2. Nf3 {[%emt 0:00:18]} Nc6 {[%emt 0:00:06]} 3. b4 {[%emt 0:00:09]} Nxb4 {[%emt 0:00:30]} 4. c3 {[%emt 0:00:12]} Nc6 {[%emt 0:00:06]} 5. d4 {[%emt 0:00:06]} cxd4 {[%emt 0:00:06]} 6. cxd4 {[%emt 0:00:08]} e6 {[%emt 0:00:09]} 7. d5 {[%emt 0:05:22]} (7. Nc3 $11) 7... Qf6 $17 {[%emt 0:03:02]} 8. dxc6 {[%emt 0:03:07] Black is better.} Qxa1 {[%emt 0:00:31]} 9. Qb3 {[%emt 0:02:20]} (9. cxd7+ $17 Bxd7 10. Qb3) 9... bxc6 $19 {[%emt 0:03:53]} 10. e5 {[%emt 0:00:39]} a5 {[%emt 0:05:45] aiming for ...a4.} 11. Bc4 {[%emt 0:07:44] [#]} Bb4+ $2 {[%emt 0:35:36]} (11... a4 $1 $19 {[%cal Ra4b3]} 12. Qc2 Bb4+ 13. Ke2 a3) 12. Ke2 $1 $15 {[%emt 0:05:39]} d5 $1 {[%emt 0:02:48]} 13. Bd3 {[%emt 0:08:48]} (13. exd6 $15 Qf6 (13... Bxd6 $2 14. Bb2 $18) 14. Rd1) 13... c5 {[%emt 0:04:05]} 14. Bb5+ {[%emt 0:04:13] [#]} Kf8 $1 {[%emt 0:01:27][%cal Oa5a4] White must now prevent ...a4!} (14... Bd7 15. Bxd7+ Kxd7 16. Bb2 $15) 15. Rd1 {[%emt 0:16:53]} a4 {[%emt 0:17:28]} 16. Qc2 {[%emt 0:01:36][%cal Oc1d2]} a3 {[%emt 0:01:38]} 17. Kf1 {[%emt 0:12:49]} (17. Bxa3 $17 Ne7 (17... Bxa3 $2 18. Nxa3 $18) 18. Kf1) 17... Ne7 {[%emt 0:01:45]} (17... g5 $19 {...g4 would now be deadly.} 18. Bxa3 g4 (18... Bxa3 19. Nxa3 $16)) 18. Bxa3 $17 {[%emt 0:01:52]} Rxa3 {[%emt 0:01:31]} ({Much less strong is} 18... Bxa3 19. Nxa3 $11) (18... Ra7 {feels hotter.} 19. Rc1 Rb7 20. Ba6 Bxa3 21. Nxa3 Rb2) 19. Nxa3 {[%emt 0:00:20]} Qc3 {[%emt 0:00:07]} 20. Qxc3 {[%emt 0:01:12]} Bxc3 {[%emt 0:00:02]} 21. Nc4 $1 {[%emt 0:00:18][%cal Od1d3]} Ng6 $36 {[%emt 0:04:23][%mdl 2048] Black is pushing.} ({Weaker is} 21... dxc4 22. Rd8#) 22. Rc1 {[%emt 0:00:52] Nb6 is the strong threat.} d4 $1 {[%emt 0:01:29]} (22... Bb4 23. Nd6 Ba3 24. Rc3 $16) 23. Ne1 {[%emt 0:06:38]} Ke7 {[%emt 0:03:30]} 24. Nd3 {[%emt 0:00:27]} Bb7 {[%emt 0:00:14]} 25. Nxc5 {[%emt 0:02:20]} Bd5 {[%emt 0:00:30] And now ...Rc8 would win. A strong pair of Bishops.} 26. Na4 {[%emt 0:03:06][%cal Oc4e3]} Rb8 {[%emt 0:03:45]} (26... Bxc4+ $2 27. Bxc4 Nxe5 28. Bb3 $19) 27. Nxc3 {[%emt 0:00:18]} dxc3 {[%emt 0:00:02]} 28. Na3 {[%emt 0:00:15]} Bxa2 {[%emt 0:06:04] Black is more active.} 29. Rxc3 {[%emt 0:00:10]} Nxe5 {[%emt 0:00:04]} 30. f4 {[%emt 0:01:04]} Ng4 {[%emt 0:00:59]} 31. Ke2 {[%emt 0:00:49]} (31. Kg1 $17) 31... g6 {[%emt 0:00:51]} 32. h3 {[%emt 0:00:39]} Nf6 {[%emt 0:00:04]} 33. Rc7+ {[%emt 0:00:45]} Kf8 {[%emt 0:00:24]} 34. g3 {[%emt 0:02:01]} Bd5 {[%emt 0:01:08]} 35. g4 {[%emt 0:04:01]} (35. Rc3 {might work better.}) 35... Bg2 $19 {[%emt 0:00:26][%cal Ob8a8]} 36. Rc3 {[%emt 0:01:14]} Nd5 {[%emt 0:00:43][%csl LRc3,LRf4]} 37. Rg3 {[%emt 0:00:10]} (37. Rc4 $142) 37... Nxf4+ {[%emt 0:00:16] Weighted Error Value: White=0.31/Black=0.20 (precise) .  Missed win:     	---       	Black=1      Mistake:       	White=7     	Black=1      Inaccurate:     	White=2     	---        OK:         	White=11    	Black=15     Best:        	White=3     	Black=3      Strong:       	White=2     	Black=3} 0-1

[Event "98th Caplin Hastings Masters 2024-25"]
[Site "Hastings"]
[Date "2025.01.01"]
[Round "7.12"]
[White "Roux, Baptiste"]
[Black "Marusenko, Petr"]
[Result "1-0"]
[ECO "B11"]
[WhiteElo "2338"]
[BlackElo "2021"]
[Annotator "TA"]
[PlyCount "77"]
[EventDate "2024.12.23"]
[EventType "swiss"]
[EventCountry "ENG"]
[SourceTitle "playchess.com"]
[Source "ChessBase"]
[SourceQuality "1"]
[TimeControl "5400+30"]

{[%evp 11,77,41,25,39,47,28,59,52,80,94,94,100,92,102,90,84,82,80,95,95,94,8,126,0,0,0,0,0,0,0,0,0,27,27,168,177,152,108,125,124,306,270,291,281,286,144,196,149,149,151,177,142,271,244,237,220,445,464,574,576,549,411,444,437,385,392,903,807]} 1. e4 {[%emt 0:08:51]} c6 {[%emt 0:00:05]} 2. Nc3 {[%emt 0:01:35]} d5 {[%emt 0:00:06]} 3. Nf3 {[%emt 0:01:28]} Bg4 {[%emt 0:00:06][%cal Bc8g4,Bg4h5,Bh5g6,Bg6e4][%mdl 32]} 4. h3 {[%emt 0:00:21]} Bh5 {[%emt 0:00:04]} 5. exd5 {[%emt 0:01:33]} cxd5 {[%emt 0:00:50]} 6. g4 {[%emt 0:01:01]} Bg6 {[%emt 0:00:11]} 7. Ne5 {[%emt 0:01:08]} Nc6 {[%emt 0:00:11]} 8. d4 {[%emt 0:00:47]} e6 {[%emt 0:00:43]} 9. h4 $1 {[%emt 0:02:31][%cal Bh3h4,Bh4h5][%mdl 32]} Nxe5 {[%emt 0:02:42]} 10. dxe5 {[%emt 0:00:06]} Bb4 {[%emt 0:00:05]} 11. h5 {[%emt 0:02:27]} Be4 {[%emt 0:00:08]} 12. f3 {[%emt 0:04:05][%cal Oc1d2]} d4 {[%emt 0:00:10][%cal Bd5d4,Bd4c3][%mdl 32]} 13. fxe4 {[%emt 0:00:09][%cal Oa2a3]} dxc3 {[%emt 0:00:07]} 14. Qxd8+ {[%emt 0:01:53]} Rxd8 {[%emt 0:00:24]} 15. Bb5+ {[%emt 0:01:36]} Kf8 {[%emt 0:00:13]} 16. b3 {[%emt 0:00:28]} (16. Ke2 $1 $16) 16... h6 {[%emt 0:04:44]} (16... a6 $11 17. Be2 Ne7) 17. Bf4 {[%emt 0:27:47]} (17. Be3 $1 $16) 17... a6 $11 {[%emt 0:02:05]} 18. Be2 {[%emt 0:03:13]} Ne7 {[%emt 0:00:21]} 19. a3 $40 {[%emt 0:06:17][%mdl 128] White mounts an attack.} Bc5 {[%emt 0:00:55]} 20. b4 {[%emt 0:01:10]} Bb6 {[%emt 0:01:34]} 21. b5 {[%emt 0:08:23]} a5 {[%emt 0:01:19]} 22. Rh3 {[%emt 0:02:08]} f5 {[%emt 0:09:08]} (22... g5 $11 {and Black has nothing to worry.} 23. Be3 Nc8) 23. exf6 $18 {[%emt 0:04:49]} (23. Rxc3 $6 fxe4 24. Be3 Bxe3 25. Rxe3 Nd5 26. Rxe4 Ke7 $11) 23... gxf6 {[%emt 0:01:24]} 24. Rd1 {[%emt 0:01:37]} Rxd1+ {[%emt 0:00:31]} 25. Kxd1 {[%emt 0:00:50]} f5 $2 {[%emt 0:12:29]} (25... e5 $16 26. Bh2 Nc8 (26... Bd4 27. Rf3 $11)) 26. gxf5 {[%emt 0:01:52]} (26. Rxc3 $6 fxe4 27. Rc4 Kf7 28. Rxe4 Nd5 $18) 26... exf5 {[%emt 0:00:44]} 27. exf5 {[%emt 0:00:36]} Nd5 {[%emt 0:00:33] [#]} 28. Bd6+ {[%emt 0:04:29] This pair of bishops is nice.} (28. Be5 $6 Rg8 29. Bd3 (29. Bxc3 Rg2 $16) 29... Rg2 $18) (28. Bc1 $1 $18) 28... Ke8 {[%emt 0:00:18] [#]} (28... Kf7 $16 29. Bc4 Kf6) 29. Bd3 {[%emt 0:03:37]} ({Better is} 29. Be5 $1 $18 {[%cal Re5h8]} Rg8 30. Bd3 (30. Bxc3 Rg5 $16)) 29... Kd7 $16 {[%emt 0:05:10]} 30. Be5 {[%emt 0:02:16]} Re8 {[%emt 0:00:05]} 31. Bg7 {[%emt 0:00:27][%cal Of5f6]} Ne3+ {[%emt 0:00:10]} (31... Be3 $16 {was necessary.}) 32. Kc1 $18 {[%emt 0:00:50]} Nd5 {[%emt 0:00:33]} 33. Rh1 {[%emt 0:01:14][%cal Of5f6] Hoping for f6!. Prevents Re1+.} (33. Bxh6 $2 Re1#) 33... Bc5 $2 {[%emt 0:00:59]} (33... Be3+ 34. Kb1 Bg5) 34. f6 {[%emt 0:01:39]} ({Don't play} 34. Bxh6 Bxa3+ 35. Kb1 Bf8 $18) 34... Bxa3+ {[%emt 0:02:43]} 35. Kb1 {[%emt 0:00:01]} Bf8 {[%emt 0:00:12]} 36. Bg6 {[%emt 0:01:12]} Ra8 {[%emt 0:00:08]} 37. Rd1 {[%emt 0:00:44]} Ke6 {[%emt 0:00:03]} 38. Re1+ {[%emt 0:00:47]} Kd6 $2 {[%emt 0:00:12]} (38... Kd7 39. Bf5+ Kc7) 39. Re8 {[%emt 0:01:40]} 1-0

[Event "98th Caplin Hastings Masters 2024-25"]
[Site "Hastings"]
[Date "2025.01.01"]
[Round "7.13"]
[White "Gu In-Jung"]
[Black "Boswell, Jacob Connor"]
[Result "1-0"]
[ECO "B22"]
[WhiteElo "1987"]
[BlackElo "2277"]
[Annotator "TA"]
[PlyCount "99"]
[EventDate "2024.12.23"]
[EventType "swiss"]
[EventCountry "ENG"]
[SourceTitle "playchess.com"]
[Source "ChessBase"]
[SourceQuality "1"]
[TimeControl "5400+30"]

{[%evp 9,99,0,0,-40,14,9,5,18,31,-33,-24,-21,-20,-89,-96,-102,-89,-116,-74,-64,-30,-36,-39,-47,0,0,0,-73,-68,-73,-72,-95,-50,-78,-60,-72,-54,-48,-50,-66,-37,-75,-4,-58,0,-6,-6,-2,-14,-24,-21,-41,10,16,83,80,531,443,519,537,535,524,734,747,29989,29988,29988,29989,29989,29981,29981,29982,29982,29983,29981,29982,29982,818,5635,916,1296,1188,1845,1719,5624,5474,4715,3600,3181,1706,1478,790]} 1. e4 {[%emt 0:00:03]} c5 {[%emt 0:09:02]} 2. Nf3 {[%emt 0:00:03]} Nc6 {[%emt 0:00:07]} 3. Bb5 {[%emt 0:00:04]} e5 {[%emt 0:00:06]} 4. c3 {[%emt 0:00:52]} a6 {[%emt 0:03:09]} 5. Bxc6 {[%emt 0:04:25]} dxc6 {[%emt 0:00:52]} 6. Nxe5 {[%emt 0:06:38]} Qe7 {[%emt 0:04:01]} (6... Qg5 $15 7. Nf3 Qxg2) 7. d4 $11 {[%emt 0:01:41]} cxd4 {[%emt 0:11:42]} 8. cxd4 {[%emt 0:00:54]} f6 {[%emt 0:00:28]} 9. Nf3 {[%emt 0:00:16]} (9. Qh5+ $2 g6 10. Qh4 fxe5 $19) (9. Nc4 $14) 9... Qxe4+ $15 {[%emt 0:00:44]} 10. Be3 {[%emt 0:00:05]} Bg4 {[%emt 0:06:38]} 11. Nbd2 {[%emt 0:01:18]} (11. Qb3 $11) 11... Qd3 $17 {[%emt 0:01:30]} 12. h3 {[%emt 0:03:28]} Bh5 $36 {[%emt 0:03:29][%mdl 2048] Black is on the roll.} 13. Qa4 {[%emt 0:03:52]} Qb5 {[%emt 0:08:26]} 14. Qxb5 {[%emt 0:06:22]} axb5 {[%emt 0:00:12]} 15. d5 $1 {[%emt 0:00:49]} c5 {[%emt 0:10:00]} (15... cxd5 16. Nd4 $11) 16. Ne4 {[%emt 0:01:41]} Bxf3 {[%emt 0:04:54]} (16... b6 $1 $15) 17. gxf3 $11 {[%emt 0:00:05][%cal Od5d6]} b6 {[%emt 0:00:27]} 18. Nc3 {[%emt 0:02:27] [#]} (18. d6 $11 {keeps the balance.}) 18... b4 $1 $17 {[%emt 0:01:50]} 19. Nb5 {[%emt 0:00:04]} Kd7 {[%emt 0:01:16] Inhibits Nc7.} 20. Ke2 {[%emt 0:02:35]} Ne7 {[%emt 0:04:44]} 21. Rhd1 {[%emt 0:00:20]} Nf5 {[%emt 0:01:00]} 22. a3 {[%emt 0:04:10]} bxa3 {[%emt 0:03:01]} 23. Nxa3 {[%emt 0:02:06]} Bd6 {[%emt 0:00:50]} 24. Nc4 {[%emt 0:01:48]} Kc7 {[%emt 0:03:20]} 25. b4 {[%emt 0:00:24] [#]} Rhe8 {[%emt 0:04:29]} (25... cxb4 26. Bxb6+ Kd7 27. Kd3 $11) (25... Nxe3 $1 $17 26. fxe3 cxb4) 26. Kd3 {[%emt 0:03:01]} ({White should play} 26. Rdb1 $11) 26... Bf8 {[%emt 0:06:32]} ({Don't play} 26... cxb4 $6 27. Bxb6+ Kd7 28. Kc2 $11) (26... Nxe3 $1 $15 27. fxe3 cxb4 28. Nxd6 Kxd6 29. Rxa8 Rxa8) 27. Bf4+ {[%emt 0:02:53]} Kb7 {[%emt 0:00:01]} 28. Rxa8 {[%emt 0:01:57]} (28. bxc5 Bxc5 29. Rxa8 Rxa8 30. Be3) 28... Rxa8 {[%emt 0:00:38]} 29. Ke4 {[%emt 0:00:05]} (29. bxc5 {simplifies} Bxc5 30. Be3 Nxe3 31. fxe3 Ra2 32. Rb1) 29... g6 {[%emt 0:04:39] ...b5 is the strong threat.} 30. d6 {[%emt 0:00:14]} Kc6 {[%emt 0:03:34]} (30... cxb4 $15 31. Kd5 Rd8) 31. b5+ $11 {[%emt 0:51:20]} Kxb5 {[%emt 0:02:17]} (31... Kb7 $1 $11) 32. Kd5 $16 {[%emt 0:00:00] Black must now prevent Rb1+. White is more active.} Rd8 $2 {[%emt 0:01:53][%mdl 8192]} (32... Ra4 $16 33. d7 (33. Rb1+ Rb4 $18) 33... Ne7+ (33... Be7 34. Rb1+ Rb4 35. Rxb4+ cxb4 36. Bc7 $18) 34. Ke6 Nc6) 33. Rb1+ $18 {[%emt 0:00:00]} Ka6 {[%emt 0:00:29]} 34. Rxb6+ {[%emt 0:00:00]} Ka7 {[%emt 0:00:00]} 35. Kxc5 {[%emt 0:00:00]} Re8 {[%emt 0:01:03]} 36. Na5 {[%emt 0:00:00] Nc6+ would kill now.} Ka8 {[%emt 0:00:32]} 37. Ra6+ {[%emt 0:00:00]} Kb8 {[%emt 0:00:02]} 38. Nc6+ {[%emt 0:00:00]} Kc8 {[%emt 0:00:09]} 39. Kd5 {[%emt 0:00:00]} Bxd6 {[%emt 0:01:08]} 40. Bxd6 {[%emt 0:00:00]} Nxd6 {[%emt 0:00:01]} 41. Kxd6 {[%emt 0:00:00] KRN-KR} Kb7 {[%emt 0:00:39]} 42. Ra7+ {[%emt 0:00:00]} Kb6 {[%emt 0:00:00]} 43. Rxh7 {[%emt 0:00:00]} (43. Ra4 $142 Re5 44. Nxe5 Kb5 45. Rf4 fxe5 46. Rg4 (46. Kxe5 Kc6 $18) 46... Kb6 47. Rb4+ (47. Kxe5 Kc6 $18) 47... Ka5 48. Kc5) 43... Re2 {[%emt 0:00:02]} 44. Nd4 {[%emt 0:00:00]} Rxf2 {[%emt 0:00:02]} 45. Rf7 {[%emt 0:00:00]} f5 {[%emt 0:00:36]} 46. Ke5 {[%emt 0:00:00]} Rh2 {[%emt 0:00:40]} 47. Rh7 {[%emt 0:00:00]} Rg2 {[%emt 0:00:26]} 48. Kf4 {[%emt 0:00:00]} Kc5 {[%emt 0:01:24]} 49. Ne6+ {[%emt 0:00:00]} Kc4 {[%emt 0:00:02]} 50. Ng5 {[%emt 0:00:00]} 1-0

[Event "98th Caplin Hastings Masters 2024-25"]
[Site "Hastings"]
[Date "2025.01.01"]
[Round "7.14"]
[White "Nielsen, Andre"]
[Black "Malinovskii, Ilia"]
[Result "1-0"]
[ECO "C17"]
[WhiteElo "2276"]
[BlackElo "2003"]
[Annotator "TA"]
[PlyCount "107"]
[EventDate "2024.12.23"]
[EventType "swiss"]
[EventCountry "ENG"]
[SourceTitle "playchess.com"]
[Source "ChessBase"]
[SourceQuality "1"]
[TimeControl "5400+30"]

{[%evp 10,107,8,13,31,39,36,32,35,27,35,28,36,41,39,38,82,86,95,58,65,57,70,63,56,43,52,51,45,24,25,0,68,70,76,78,95,66,118,101,131,110,212,98,104,109,92,96,166,166,180,174,178,179,210,152,141,154,144,133,137,137,245,181,181,149,151,156,243,214,316,295,320,314,306,296,306,306,391,437,439,428,419,420,1075,1075,1033,989,869,829,29971,29966,29979,29980,29981,29982,29982,29983,29980,29981]} 1. e4 {[%emt 0:02:34][%cal Be2e4,Be4e5][%mdl 32]} e6 {[%emt 0:00:11]} 2. d4 {[%emt 0:00:59]} d5 {[%emt 0:00:07]} 3. Nc3 {[%emt 0:00:16]} Bb4 {[%emt 0:00:10]} 4. e5 {[%emt 0:00:39]} c5 {[%emt 0:00:08]} 5. Bd2 {[%emt 0:01:36]} Bxc3 {[%emt 0:01:25]} 6. Bxc3 {[%emt 0:00:23]} b6 {[%emt 0:02:22]} 7. Qg4 {[%emt 0:17:14]} Kf8 {[%emt 0:00:33]} 8. Nf3 {[%emt 0:00:33]} Ne7 {[%emt 0:05:54] White is slightly better.} 9. Qf4 {[%emt 0:13:22] Black is weak on the dark squares} h6 {[%emt 0:06:22]} 10. h4 {[%emt 0:04:52]} Nbc6 {[%emt 0:10:41]} 11. h5 {[%emt 0:04:31]} Qc7 {[%emt 0:12:29]} 12. Bd3 {[%emt 0:10:16]} cxd4 {[%emt 0:05:24]} 13. Nxd4 {[%emt 0:01:54]} Nxd4 {[%emt 0:00:06]} 14. Qxd4 {[%emt 0:07:21]} a5 {[%emt 0:02:30]} 15. Rh3 {[%emt 0:03:26]} Ba6 {[%emt 0:02:25]} 16. Bxa6 {[%emt 0:00:26]} Rxa6 {[%emt 0:00:08]} 17. b3 {[%emt 0:02:55]} b5 {[%emt 0:15:18]} 18. a3 {[%emt 0:00:22]} Rc6 {[%emt 0:00:46]} 19. Qd2 {[%emt 0:01:39][%cal Oe1c1]} Kg8 {[%emt 0:02:02][%cal Ob5b4]} 20. Rf3 {[%emt 0:02:15][%cal Oe1c1]} g6 {[%emt 0:05:16]} (20... Nf5 $11) 21. hxg6 {[%emt 0:07:42] White is more active.} (21. Bxa5 $2 Qxe5+ 22. Qe2 Qxa1+ $19) 21... Nxg6 {[%emt 0:00:25]} 22. O-O-O {[%emt 0:00:35]} (22. Bxa5 $2 Qxe5+ 23. Qe3 Qxa1+ $19) 22... a4 {[%emt 0:03:12]} 23. Kb2 {[%emt 0:00:25]} Kg7 {[%emt 0:00:52]} (23... h5 $14) 24. Rh1 {[%emt 0:00:46]} axb3 {[%emt 0:05:42]} 25. cxb3 {[%emt 0:00:13]} Qe7 {[%emt 0:01:53]} (25... h5 $16) 26. Bb4 {[%emt 0:03:16]} (26. Rh5 $18) 26... Qg5 $16 {[%emt 0:02:37]} 27. Qxg5 {[%emt 0:00:34]} hxg5 {[%emt 0:00:04]} 28. Rxh8 {[%emt 0:00:08]} Nxh8 {[%emt 0:00:08][%mdl 4096] Endgame. KRB-KRN} (28... Kxh8 $16 {keeps fighting.} 29. Bc3 (29. Rxf7 Nxe5 30. Rb7 Nd3+ 31. Ka1 Rc1+ 32. Ka2 Rc2+ 33. Ka1 Nxb4 $15) 29... Rc8 30. Rh3+ (30. Rxf7 Nf4 $16) 30... Kg7) 29. Be7 $18 {[%emt 0:00:32] Strongly threatening Bf6+.} Ng6 {[%emt 0:04:00]} 30. Bxg5 {[%emt 0:00:28]} Kf8 {[%emt 0:00:31]} 31. Bf6 {[%emt 0:00:28] Rc3 is the strong threat.} Ke8 {[%emt 0:00:34]} 32. Rh3 {[%emt 0:01:01]} Nf4 {[%emt 0:03:03] [#]} 33. Rg3 {[%emt 0:00:35]} Kd7 {[%emt 0:02:09]} 34. Bg5 {[%emt 0:00:30]} Ng6 {[%emt 0:00:59]} 35. f4 {[%emt 0:00:14]} Kc7 {[%emt 0:02:44]} (35... Rc8 $16 36. Re3 Rg8) 36. Rh3 {[%emt 0:01:15] Black must now prevent Rh7.} Kb7 {[%emt 0:00:22]} 37. Rh7 {[%emt 0:01:49]} Rc7 {[%emt 0:00:07]} 38. g3 {[%emt 0:00:57] Bd8 would now be deadly.} Nf8 {[%emt 0:01:53] [#]} (38... Ka6 $16 {might work better.} 39. Rh1 Kb7) 39. Rg7 $1 {[%emt 0:02:28]} d4 {[%emt 0:01:45]} (39... Ka6 $142 40. g4 d4) 40. Bd8 {[%emt 0:00:32]} Rd7 {[%emt 0:00:19]} 41. Ba5 {[%emt 0:00:07]} Kc6 {[%emt 0:00:16]} 42. Kc2 {[%emt 0:01:31]} Kd5 {[%emt 0:00:29]} 43. Bb4 {[%emt 0:00:54]} Rc7+ {[%emt 0:00:45]} 44. Kd2 {[%emt 0:02:44]} Ng6 {[%emt 0:00:08]} 45. Kd3 {[%emt 0:00:07]} Ra7 {[%emt 0:00:40]} 46. Rg8 {[%emt 0:00:29] And now Rc8 would win.} Rd7 {[%emt 0:00:34]} (46... Kc6 $142 47. Rd8 (47. Kxd4 Ne7 $18) 47... Kc7 48. Rxd4 Kc6 49. Rd6+ Kc7) 47. Rc8 {[%emt 0:03:16][%csl Gb4][%cal Rc8c5]} Nxe5+ {[%emt 0:00:08]} 48. fxe5 {[%emt 0:00:07]} Kxe5 {[%emt 0:00:07] KRB-KR} 49. Rc5+ {[%emt 0:00:06]} Rd5 {[%emt 0:02:52]} 50. a4 {[%emt 0:00:24] White mates.} bxa4 {[%emt 0:00:20]} 51. bxa4 {[%emt 0:00:07][%cal Bb3a4,Ba4a5,Ba5a6][%mdl 32]} Kd6 {[%emt 0:01:02] [#]} 52. a5 $1 {[%emt 0:01:03]} Rxc5 {[%emt 0:00:49]} 53. a6 {[%emt 0:00:08]} Kc6 {[%emt 0:00:11]} 54. Bxc5 {[%emt 0:00:18] Weighted Error Value: White=0.13 (very precise) /Black=0.37.  Mistake:       	White=1     	Black=8      Inaccurate:     	White=2     	Black=1      OK:         	White=20    	Black=12     Best:        	White=4     	Black=3      Strong:       	White=1     	---} 1-0